[Event "Titled Tuesday Blitz February 15 Early 2022"]
[White "Shuvalova, Polina"]
[Black "Galchenko, Matvey"]
[WhiteFideId "24171760"]
[BlackFideId "24175480"]
[WhiteElo "2355"]
[BlackElo "2453"]
[Result "0-1"]
[Round "06"]
[TimeControl "180+1"]
[Date "2022.02.15"]
[WhiteClock "0:00:28"]
[BlackClock "0:00:06"]

1. e4 {[%clk 0:02:57]}  e6 {[%clk 0:02:59]} 2. d4 {[%clk 0:02:56]}  d5 {[%clk 0:03:00]} 3. Nc3 {[%clk 0:02:43]}  Bb4 {[%clk 0:02:59]} 4. e5 {[%clk 0:02:40]}  Ne7 {[%clk 0:02:59]} 5. a3 {[%clk 0:02:40]}  Bxc3+ {[%clk 0:02:59]} 6. bxc3 {[%clk 0:02:41]}  c5 {[%clk 0:03:00]} 7. a4 {[%clk 0:02:41]}  Nbc6 {[%clk 0:02:55]} 8. Nf3 {[%clk 0:02:38]}  Qa5 {[%clk 0:02:55]} 9. Bd2 {[%clk 0:02:37]}  Bd7 {[%clk 0:02:54]} 10. Bb5 {[%clk 0:02:32]}  c4 {[%clk 0:02:38]} 11. O-O {[%clk 0:02:27]}  h6 {[%clk 0:02:20]} 12. h3 {[%clk 0:02:25]}  O-O-O {[%clk 0:02:16]} 13. Nh2 {[%clk 0:02:23]}  f6 {[%clk 0:01:59]} 14. exf6 {[%clk 0:02:14]}  gxf6 {[%clk 0:02:00]} 15. Re1 {[%clk 0:02:15]}  h5 {[%clk 0:01:52]} 16. Qf3 {[%clk 0:02:11]}  Rdf8 {[%clk 0:01:30]} 17. Nf1 {[%clk 0:02:10]}  a6 {[%clk 0:01:14]} 18. Bxc6 {[%clk 0:02:10]}  Nxc6 {[%clk 0:01:15]} 19. Re2 {[%clk 0:02:08]}  e5 {[%clk 0:01:11]} 20. Ne3 {[%clk 0:02:01]}  Be6 {[%clk 0:00:47]} 21. Nf5 {[%clk 0:01:52]}  Qc7 {[%clk 0:00:42]} 22. Rae1 {[%clk 0:01:41]}  e4 {[%clk 0:00:37]} 23. Rxe4 {[%clk 0:01:06]}  dxe4 {[%clk 0:00:38]} 24. Qxe4 {[%clk 0:01:07]}  Bxf5 {[%clk 0:00:28]} 25. Qxf5+ {[%clk 0:01:07]}  Qd7 {[%clk 0:00:28]} 26. Qc5 {[%clk 0:01:06]}  Re8 {[%clk 0:00:22]} 27. Rb1 {[%clk 0:01:00]}  Rd8 {[%clk 0:00:17]} 28. Bf4 {[%clk 0:01:00]}  Qd5 {[%clk 0:00:16]} 29. Qb6 {[%clk 0:00:57]}  Rd7 {[%clk 0:00:16]} 30. h4 {[%clk 0:00:52]}  Rg8 {[%clk 0:00:16]} 31. g3 {[%clk 0:00:51]}  Rg4 {[%clk 0:00:17]} 32. Be3 {[%clk 0:00:49]}  Rdg7 {[%clk 0:00:16]} 33. Kf1 {[%clk 0:00:46]}  Qf3 {[%clk 0:00:11]} 34. Qc5 {[%clk 0:00:41]}  Rxg3 {[%clk 0:00:04]} 35. Ke1 {[%clk 0:00:32]}  Rg1+ {[%clk 0:00:04]} 36. Kd2 {[%clk 0:00:33]}  Rxb1 {[%clk 0:00:05]} 37. Qf8+ {[%clk 0:00:33]}  Nd8 {[%clk 0:00:05]} 38. Qc5+ {[%clk 0:00:29]}  Qc6 {[%clk 0:00:06]} 39. Qf8 {[%clk 0:00:28]}  Rgg1 {[%clk 0:00:06]} 40. Ke2 {[%clk 0:00:28]}  Rge1+ {[%clk 0:00:05]} 41. Kd2 {[%clk 0:00:28]}  Rbd1# {[%clk 0:00:06]} 0-1


[Site "https://www.chess.com"]

[Event "Titled Tuesday Blitz February 15 Early 2022"]
[White "Stefanov, Plamen"]
[Black "Piliczewski, Bogusz"]
[WhiteFideId "2900980"]
[BlackFideId "1104144"]
[WhiteElo "2137"]
[BlackElo "1896"]
[Result "1-0"]
[Round "06"]
[TimeControl "180+1"]
[Date "2022.02.15"]
[WhiteClock "0:00:52"]
[BlackClock "0:00:01"]

1. e4 {[%clk 0:03:00]}  c6 {[%clk 0:02:52]} 2. d4 {[%clk 0:02:59]}  d5 {[%clk 0:02:52]} 3. e5 {[%clk 0:03:00]}  c5 {[%clk 0:02:50]} 4. c3 {[%clk 0:02:59]}  Bf5 {[%clk 0:02:48]} 5. Nf3 {[%clk 0:02:59]}  Nc6 {[%clk 0:02:47]} 6. Bb5 {[%clk 0:02:58]}  e6 {[%clk 0:02:45]} 7. O-O {[%clk 0:02:54]}  Qb6 {[%clk 0:02:44]} 8. Bxc6+ {[%clk 0:02:53]}  bxc6 {[%clk 0:02:43]} 9. Nbd2 {[%clk 0:02:49]}  cxd4 {[%clk 0:02:25]} 10. cxd4 {[%clk 0:02:46]}  Bb4 {[%clk 0:02:18]} 11. Nb3 {[%clk 0:02:43]}  Ne7 {[%clk 0:02:14]} 12. Be3 {[%clk 0:02:40]}  Bg4 {[%clk 0:02:10]} 13. Qc1 {[%clk 0:02:38]}  Bxf3 {[%clk 0:02:08]} 14. gxf3 {[%clk 0:02:37]}  Nf5 {[%clk 0:02:03]} 15. Kh1 {[%clk 0:02:37]}  O-O {[%clk 0:01:59]} 16. Rg1 {[%clk 0:02:37]}  g6 {[%clk 0:01:55]} 17. Bh6 {[%clk 0:02:26]}  Rfc8 {[%clk 0:01:54]} 18. Rg4 {[%clk 0:02:26]}  Bf8 {[%clk 0:01:47]} 19. Qg5 {[%clk 0:02:22]}  Qd8 {[%clk 0:01:31]} 20. Bxf8 {[%clk 0:02:17]}  Qxg5 {[%clk 0:01:30]} 21. Rxg5 {[%clk 0:02:16]}  Kxf8 {[%clk 0:01:29]} 22. Rc1 {[%clk 0:02:13]}  a5 {[%clk 0:01:28]} 23. Rg4 {[%clk 0:02:06]}  a4 {[%clk 0:01:20]} 24. Nc5 {[%clk 0:02:05]}  a3 {[%clk 0:01:19]} 25. b3 {[%clk 0:02:02]}  Ra7 {[%clk 0:01:14]} 26. Rd1 {[%clk 0:01:53]}  h5 {[%clk 0:01:13]} 27. Rgg1 {[%clk 0:01:51]}  Rb8 {[%clk 0:01:08]} 28. Rd3 {[%clk 0:01:49]}  Rb4 {[%clk 0:01:07]} 29. Rgd1 {[%clk 0:01:48]}  Ra5 {[%clk 0:01:02]} 30. Na4 {[%clk 0:01:27]}  Ke7 {[%clk 0:00:55]} 31. Kg2 {[%clk 0:01:26]}  g5 {[%clk 0:00:38]} 32. Kf1 {[%clk 0:01:20]}  Ra8 {[%clk 0:00:26]} 33. Ke2 {[%clk 0:01:19]}  Rg8 {[%clk 0:00:19]} 34. Kd2 {[%clk 0:01:18]}  g4 {[%clk 0:00:13]} 35. Kc3 {[%clk 0:01:18]}  Rbb8 {[%clk 0:00:12]} 36. f4 {[%clk 0:01:14]}  h4 {[%clk 0:00:10]} 37. b4 {[%clk 0:01:05]}  Rg6 {[%clk 0:00:09]} 38. Kb3 {[%clk 0:01:05]}  g3 {[%clk 0:00:07]} 39. fxg3 {[%clk 0:01:03]}  hxg3 {[%clk 0:00:07]} 40. hxg3 {[%clk 0:01:04]}  Nxg3 {[%clk 0:00:06]} 41. Kxa3 {[%clk 0:00:59]}  Ne4 {[%clk 0:00:04]} 42. Kb3 {[%clk 0:00:55]}  Nf2 {[%clk 0:00:04]} 43. Nc5 {[%clk 0:00:53]}  Nxd1 {[%clk 0:00:03]} 44. Rxd1 {[%clk 0:00:52]}  Rg3+ {[%clk 0:00:02]} 45. Rd3 {[%clk 0:00:52]}  Rxd3+ {[%clk 0:00:01]} 46. Nxd3 {[%clk 0:00:52]} 1-0


[Site "https://www.chess.com"]

[Event "Titled Tuesday Blitz February 15 Early 2022"]
[White "Tanenbaum, Zachary"]
[Black "Jakubowska, Anna"]
[WhiteFideId "2060850"]
[BlackFideId "1121952"]
[WhiteElo "2168"]
[BlackElo "1924"]
[Result "1-0"]
[Round "06"]
[TimeControl "180+1"]
[Date "2022.02.15"]
[WhiteClock "0:00:09"]
[BlackClock "0:00:04"]

1. e4 {[%clk 0:03:00]}  c5 {[%clk 0:02:56]} 2. Nf3 {[%clk 0:03:00]}  e6 {[%clk 0:02:56]} 3. d4 {[%clk 0:03:01]}  cxd4 {[%clk 0:02:57]} 4. Bg5 {[%clk 0:03:01]}  Qa5+ {[%clk 0:02:47]} 5. c3 {[%clk 0:03:01]}  Nc6 {[%clk 0:02:42]} 6. Be2 {[%clk 0:03:00]}  dxc3 {[%clk 0:02:37]} 7. Nxc3 {[%clk 0:03:01]}  Be7 {[%clk 0:02:33]} 8. Bf4 {[%clk 0:02:51]}  Nf6 {[%clk 0:02:26]} 9. O-O {[%clk 0:02:51]}  d5 {[%clk 0:02:24]} 10. Nb5 {[%clk 0:02:37]}  O-O {[%clk 0:02:13]} 11. Bc7 {[%clk 0:02:26]}  Qb4 {[%clk 0:02:07]} 12. e5 {[%clk 0:02:20]}  Nd7 {[%clk 0:01:59]} 13. a3 {[%clk 0:02:05]}  Qf4 {[%clk 0:01:48]} 14. g3 {[%clk 0:02:03]}  Qf5 {[%clk 0:01:37]} 15. Bd3 {[%clk 0:01:13]}  Qh5 {[%clk 0:01:35]} 16. Rc1 {[%clk 0:01:13]}  Nc5 {[%clk 0:01:19]} 17. Bd6 {[%clk 0:01:02]}  Nxd3 {[%clk 0:01:10]} 18. Qxd3 {[%clk 0:01:03]}  Bd7 {[%clk 0:01:02]} 19. Bxe7 {[%clk 0:00:36]}  Nxe7 {[%clk 0:01:01]} 20. Nd6 {[%clk 0:00:31]}  Bc6 {[%clk 0:00:58]} 21. Qe3 {[%clk 0:00:26]}  Nf5 {[%clk 0:00:56]} 22. Nxf5 {[%clk 0:00:24]}  Qxf5 {[%clk 0:00:57]} 23. Nd4 {[%clk 0:00:25]}  Qh5 {[%clk 0:00:53]} 24. Nxc6 {[%clk 0:00:25]}  bxc6 {[%clk 0:00:53]} 25. Rxc6 {[%clk 0:00:26]}  Rfc8 {[%clk 0:00:47]} 26. Qxa7 {[%clk 0:00:13]}  Qxe5 {[%clk 0:00:42]} 27. Rfc1 {[%clk 0:00:10]}  Rf8 {[%clk 0:00:09]} 28. Qxa8 {[%clk 0:00:10]}  h6 {[%clk 0:00:09]} 29. Rc8 {[%clk 0:00:09]}  Rxc8 {[%clk 0:00:09]} 30. Qxc8+ {[%clk 0:00:10]}  Kh7 {[%clk 0:00:10]} 31. Qc2+ {[%clk 0:00:10]}  g6 {[%clk 0:00:09]} 32. Qc7 {[%clk 0:00:09]}  Qf6 {[%clk 0:00:05]} 33. a4 {[%clk 0:00:09]}  g5 {[%clk 0:00:05]} 34. a5 {[%clk 0:00:09]}  d4 {[%clk 0:00:03]} 35. a6 {[%clk 0:00:08]}  d3 {[%clk 0:00:04]} 36. a7 {[%clk 0:00:08]}  d2 {[%clk 0:00:05]} 37. Qc2+ {[%clk 0:00:08]}  Kg7 {[%clk 0:00:04]} 38. Qxd2 {[%clk 0:00:09]} 1-0


[Site "https://www.chess.com"]

[Event "Titled Tuesday Blitz February 15 Early 2022"]
[White "Tay, Junior"]
[Black "Eynullayev, Altay"]
[WhiteFideId "5800439"]
[BlackFideId "13413562"]
[WhiteElo "2216"]
[BlackElo "2079"]
[Result "0-1"]
[Round "06"]
[TimeControl "180+1"]
[Date "2022.02.15"]
[WhiteClock "0:01:41"]
[BlackClock "0:01:16"]

1. Nc3 {[%clk 0:02:58]}  e6 {[%clk 0:02:52]} 2. e4 {[%clk 0:02:58]}  d5 {[%clk 0:02:52]} 3. Nf3 {[%clk 0:02:58]}  dxe4 {[%clk 0:02:44]} 4. Nxe4 {[%clk 0:02:58]}  Bd7 {[%clk 0:02:41]} 5. d4 {[%clk 0:02:58]}  Bc6 {[%clk 0:02:41]} 6. Bd3 {[%clk 0:02:58]}  Be7 {[%clk 0:02:38]} 7. Qe2 {[%clk 0:02:58]}  Nf6 {[%clk 0:02:37]} 8. Neg5 {[%clk 0:02:58]}  h6 {[%clk 0:02:25]} 9. Nxe6 {[%clk 0:02:58]}  fxe6 {[%clk 0:02:26]} 10. Bg6+ {[%clk 0:02:58]}  Kf8 {[%clk 0:02:26]} 11. c3 {[%clk 0:02:55]}  Qd5 {[%clk 0:02:22]} 12. O-O {[%clk 0:02:43]}  Bb5 {[%clk 0:02:21]} 13. Bd3 {[%clk 0:02:37]}  Bxd3 {[%clk 0:02:20]} 14. Qxd3 {[%clk 0:02:38]}  Nbd7 {[%clk 0:02:19]} 15. Re1 {[%clk 0:02:38]}  Rd8 {[%clk 0:02:14]} 16. c4 {[%clk 0:02:37]}  Qh5 {[%clk 0:02:11]} 17. Rxe6 {[%clk 0:02:35]}  Nc5 {[%clk 0:02:11]} 18. Qe2 {[%clk 0:02:28]}  Nxe6 {[%clk 0:02:08]} 19. Qxe6 {[%clk 0:02:29]}  Rxd4 {[%clk 0:02:02]} 20. Be3 {[%clk 0:02:26]}  Rd6 {[%clk 0:01:59]} 21. Qc8+ {[%clk 0:02:25]}  Rd8 {[%clk 0:01:59]} 22. Qxc7 {[%clk 0:02:23]}  Rd7 {[%clk 0:01:35]} 23. Qc8+ {[%clk 0:02:15]}  Qe8 {[%clk 0:01:35]} 24. Qxe8+ {[%clk 0:02:08]}  Kxe8 {[%clk 0:01:35]} 25. Ne5 {[%clk 0:02:06]}  Rc7 {[%clk 0:01:33]} 26. b3 {[%clk 0:02:05]}  Rf8 {[%clk 0:01:27]} 27. Re1 {[%clk 0:01:59]}  Nd7 {[%clk 0:01:20]} 28. Ng6 {[%clk 0:01:56]}  Rf7 {[%clk 0:01:21]} 29. Bf4 {[%clk 0:01:42]}  Rc6 {[%clk 0:01:17]} 30. a4 {[%clk 0:01:41]}  Rxg6 {[%clk 0:01:16]} 0-1


[Site "https://www.chess.com"]

[Event "Titled Tuesday Blitz February 15 Early 2022"]
[White "Timofeev, Artyom"]
[Black "Jaferian, Koosha"]
[WhiteFideId "4140419"]
[BlackFideId "12507440"]
[WhiteElo "2583"]
[BlackElo "2027"]
[Result "1-0"]
[Round "06"]
[TimeControl "180+1"]
[Date "2022.02.15"]
[WhiteClock "0:00:04"]
[BlackClock "0:00:04"]

1. d4 {[%clk 0:03:00]}  Nf6 {[%clk 0:02:58]} 2. Nf3 {[%clk 0:03:00]}  e6 {[%clk 0:02:58]} 3. Bg5 {[%clk 0:03:00]}  Be7 {[%clk 0:02:58]} 4. Nc3 {[%clk 0:02:59]}  d5 {[%clk 0:02:58]} 5. e3 {[%clk 0:02:59]}  O-O {[%clk 0:02:58]} 6. Be2 {[%clk 0:02:55]}  c5 {[%clk 0:02:59]} 7. O-O {[%clk 0:02:55]}  cxd4 {[%clk 0:02:59]} 8. exd4 {[%clk 0:02:51]}  Nc6 {[%clk 0:03:00]} 9. Re1 {[%clk 0:02:50]}  Ne4 {[%clk 0:02:54]} 10. Bxe7 {[%clk 0:02:49]}  Qxe7 {[%clk 0:02:55]} 11. Bd3 {[%clk 0:02:30]}  f5 {[%clk 0:02:54]} 12. Ne2 {[%clk 0:02:28]}  Bd7 {[%clk 0:02:47]} 13. c3 {[%clk 0:02:27]}  Be8 {[%clk 0:02:47]} 14. Bc2 {[%clk 0:02:21]}  Bh5 {[%clk 0:02:46]} 15. Nf4 {[%clk 0:02:21]}  Bf7 {[%clk 0:02:32]} 16. Qc1 {[%clk 0:02:15]}  b5 {[%clk 0:02:11]} 17. Nd3 {[%clk 0:02:15]}  Rab8 {[%clk 0:02:05]} 18. Nfe5 {[%clk 0:02:13]}  Nxe5 {[%clk 0:02:06]} 19. Nxe5 {[%clk 0:02:13]}  Qc7 {[%clk 0:02:00]} 20. a3 {[%clk 0:02:05]}  a5 {[%clk 0:02:00]} 21. Bd3 {[%clk 0:02:03]}  Be8 {[%clk 0:01:46]} 22. h4 {[%clk 0:01:51]}  Nd6 {[%clk 0:01:43]} 23. Qf4 {[%clk 0:01:44]}  b4 {[%clk 0:01:31]} 24. cxb4 {[%clk 0:01:38]}  axb4 {[%clk 0:01:32]} 25. a4 {[%clk 0:01:39]}  b3 {[%clk 0:01:16]} 26. a5 {[%clk 0:01:38]}  Nc4 {[%clk 0:01:05]} 27. Bxc4 {[%clk 0:01:28]}  dxc4 {[%clk 0:01:06]} 28. Re3 {[%clk 0:01:28]}  Bc6 {[%clk 0:00:55]} 29. h5 {[%clk 0:01:21]}  Rf6 {[%clk 0:00:43]} 30. Rg3 {[%clk 0:01:18]}  h6 {[%clk 0:00:42]} 31. Qh4 {[%clk 0:01:03]}  Kh7 {[%clk 0:00:26]} 32. Nxc4 {[%clk 0:00:59]}  Bxg2 {[%clk 0:00:26]} 33. Ne5 {[%clk 0:00:55]}  Be4 {[%clk 0:00:23]} 34. Rg6 {[%clk 0:00:27]}  Rbf8 {[%clk 0:00:18]} 35. Qf4 {[%clk 0:00:22]}  Qc2 {[%clk 0:00:13]} 36. Qc1 {[%clk 0:00:21]}  Qe2 {[%clk 0:00:10]} 37. Qc7 {[%clk 0:00:13]}  Rxg6+ {[%clk 0:00:10]} 38. hxg6+ {[%clk 0:00:12]}  Kh8 {[%clk 0:00:11]} 39. Nf7+ {[%clk 0:00:11]}  Kg8 {[%clk 0:00:11]} 40. Nxh6+ {[%clk 0:00:12]}  Kh8 {[%clk 0:00:11]} 41. Nf7+ {[%clk 0:00:12]}  Kg8 {[%clk 0:00:12]} 42. Nh6+ {[%clk 0:00:11]}  Kh8 {[%clk 0:00:12]} 43. Qh2 {[%clk 0:00:04]}  Bf3 {[%clk 0:00:04]} 44. Ng4+ {[%clk 0:00:03]}  Kg8 {[%clk 0:00:04]} 45. Qh7# {[%clk 0:00:04]} 1-0


[Site "https://www.chess.com"]

[Event "Titled Tuesday Blitz February 15 Early 2022"]
[White "Todorovic, Bojan"]
[Black "Clawitter, Craig"]
[WhiteFideId "917087"]
[BlackFideId "2023105"]
[WhiteElo "2266"]
[BlackElo "2139"]
[Result "1-0"]
[Round "06"]
[TimeControl "180+1"]
[Date "2022.02.15"]
[WhiteClock "0:00:12"]
[BlackClock "0:00:01"]

1. Nf3 {[%clk 0:02:59]}  Nf6 {[%clk 0:02:57]} 2. c4 {[%clk 0:02:58]}  e6 {[%clk 0:02:56]} 3. g3 {[%clk 0:02:57]}  d5 {[%clk 0:02:55]} 4. Bg2 {[%clk 0:02:57]}  Be7 {[%clk 0:02:56]} 5. O-O {[%clk 0:02:57]}  O-O {[%clk 0:02:56]} 6. b3 {[%clk 0:02:57]}  a5 {[%clk 0:02:55]} 7. Nc3 {[%clk 0:02:52]}  a4 {[%clk 0:02:33]} 8. cxd5 {[%clk 0:02:46]}  axb3 {[%clk 0:02:29]} 9. dxe6 {[%clk 0:02:31]}  Bxe6 {[%clk 0:02:15]} 10. Ng5 {[%clk 0:02:30]}  Nc6 {[%clk 0:01:45]} 11. Nxe6 {[%clk 0:02:26]}  fxe6 {[%clk 0:01:46]} 12. Qxb3 {[%clk 0:02:24]}  Nd4 {[%clk 0:01:46]} 13. Qb1 {[%clk 0:02:16]}  Nd5 {[%clk 0:01:28]} 14. Qe4 {[%clk 0:01:52]}  Bf6 {[%clk 0:00:48]} 15. Bb2 {[%clk 0:01:31]}  c6 {[%clk 0:00:32]} 16. Rfe1 {[%clk 0:01:08]}  Nb4 {[%clk 0:00:27]} 17. Rec1 {[%clk 0:00:50]}  e5 {[%clk 0:00:16]} 18. e3 {[%clk 0:00:41]}  Ndc2 {[%clk 0:00:10]} 19. Rxc2 {[%clk 0:00:40]}  Nxc2 {[%clk 0:00:11]} 20. Qxc2 {[%clk 0:00:40]}  Qd7 {[%clk 0:00:10]} 21. Ne4 {[%clk 0:00:38]}  Qf5 {[%clk 0:00:09]} 22. d3 {[%clk 0:00:35]}  Rad8 {[%clk 0:00:08]} 23. a4 {[%clk 0:00:33]}  Be7 {[%clk 0:00:07]} 24. Qc4+ {[%clk 0:00:28]}  Kh8 {[%clk 0:00:07]} 25. Bc3 {[%clk 0:00:27]}  Rd5 {[%clk 0:00:07]} 26. Rb1 {[%clk 0:00:26]}  Ra8 {[%clk 0:00:05]} 27. Rxb7 {[%clk 0:00:24]}  Ba3 {[%clk 0:00:02]} 28. Qb3 {[%clk 0:00:21]}  Bc1 {[%clk 0:00:01]} 29. Rb8+ {[%clk 0:00:20]}  Rd8 {[%clk 0:00:01]} 30. Rxd8+ {[%clk 0:00:19]}  Rxd8 {[%clk 0:00:01]} 31. Qc4 {[%clk 0:00:16]}  h6 {[%clk 0:00:01]} 32. Be1 {[%clk 0:00:12]} 1-0


[Site "https://www.chess.com"]

[Event "Titled Tuesday Blitz February 15 Early 2022"]
[White "Toncheva, Nadya"]
[Black "Przybylski, Wojciech"]
[WhiteFideId "2924056"]
[BlackFideId "1117599"]
[WhiteElo "1920"]
[BlackElo "2133"]
[Result "1-0"]
[Round "06"]
[TimeControl "180+1"]
[Date "2022.02.15"]
[WhiteClock "0:00:08"]
[BlackClock "0:00:01"]

1. e4 {[%clk 0:03:00]}  c5 {[%clk 0:02:57]} 2. Nf3 {[%clk 0:03:00]}  d6 {[%clk 0:02:58]} 3. c3 {[%clk 0:03:00]}  Nf6 {[%clk 0:02:57]} 4. Bd3 {[%clk 0:03:00]}  Nc6 {[%clk 0:02:53]} 5. O-O {[%clk 0:03:00]}  e5 {[%clk 0:02:51]} 6. Re1 {[%clk 0:03:00]}  Be7 {[%clk 0:02:51]} 7. h3 {[%clk 0:03:00]}  O-O {[%clk 0:02:50]} 8. Bf1 {[%clk 0:03:00]}  Re8 {[%clk 0:02:47]} 9. d3 {[%clk 0:03:00]}  Bf8 {[%clk 0:02:46]} 10. Be3 {[%clk 0:03:00]}  d5 {[%clk 0:02:45]} 11. Nbd2 {[%clk 0:02:42]}  h6 {[%clk 0:02:43]} 12. exd5 {[%clk 0:02:36]}  Nxd5 {[%clk 0:02:42]} 13. Nc4 {[%clk 0:02:32]}  b5 {[%clk 0:02:35]} 14. Na3 {[%clk 0:02:29]}  Nxe3 {[%clk 0:02:28]} 15. Rxe3 {[%clk 0:02:23]}  a6 {[%clk 0:02:28]} 16. Nc2 {[%clk 0:02:20]}  Bb7 {[%clk 0:02:25]} 17. Qe2 {[%clk 0:02:16]}  Qd6 {[%clk 0:02:15]} 18. d4 {[%clk 0:02:02]}  cxd4 {[%clk 0:01:36]} 19. cxd4 {[%clk 0:02:01]}  e4 {[%clk 0:01:11]} 20. Rxe4 {[%clk 0:01:38]}  Rxe4 {[%clk 0:01:10]} 21. Qxe4 {[%clk 0:01:38]}  Nd8 {[%clk 0:01:11]} 22. Qd3 {[%clk 0:01:36]}  Ne6 {[%clk 0:01:09]} 23. Re1 {[%clk 0:01:29]}  Nf4 {[%clk 0:01:07]} 24. Qe3 {[%clk 0:01:26]}  Bd5 {[%clk 0:00:59]} 25. a3 {[%clk 0:01:12]}  Bc6 {[%clk 0:00:53]} 26. Nb4 {[%clk 0:01:10]}  Re8 {[%clk 0:00:52]} 27. Qc3 {[%clk 0:01:02]}  Rxe1 {[%clk 0:00:37]} 28. Nxe1 {[%clk 0:01:03]}  Bb7 {[%clk 0:00:34]} 29. Nbd3 {[%clk 0:00:58]}  Nd5 {[%clk 0:00:26]} 30. Qd2 {[%clk 0:00:56]}  Qf6 {[%clk 0:00:22]} 31. Ne5 {[%clk 0:00:48]}  Bd6 {[%clk 0:00:22]} 32. N1f3 {[%clk 0:00:47]}  Nf4 {[%clk 0:00:20]} 33. Qe3 {[%clk 0:00:42]}  g6 {[%clk 0:00:17]} 34. Ng4 {[%clk 0:00:37]}  Qg7 {[%clk 0:00:10]} 35. Qe8+ {[%clk 0:00:34]}  Bf8 {[%clk 0:00:03]} 36. Nfe5 {[%clk 0:00:30]}  Ne6 {[%clk 0:00:02]} 37. Nd7 {[%clk 0:00:26]}  Bc6 {[%clk 0:00:02]} 38. Ndf6+ {[%clk 0:00:25]}  Kh8 {[%clk 0:00:02]} 39. Qxc6 {[%clk 0:00:25]}  h5 {[%clk 0:00:02]} 40. d5 {[%clk 0:00:21]}  hxg4 {[%clk 0:00:02]} 41. dxe6 {[%clk 0:00:18]}  Qxf6 {[%clk 0:00:02]} 42. Qc8 {[%clk 0:00:15]}  fxe6 {[%clk 0:00:02]} 43. Qxa6 {[%clk 0:00:15]}  Be7 {[%clk 0:00:01]} 44. Qxb5 {[%clk 0:00:14]}  Kg7 {[%clk 0:00:01]} 45. hxg4 {[%clk 0:00:13]}  Qf7 {[%clk 0:00:01]} 46. Qe5+ {[%clk 0:00:13]}  Bf6 {[%clk 0:00:01]} 47. Qe2 {[%clk 0:00:13]}  Qa7 {[%clk 0:00:01]} 48. Qb5 {[%clk 0:00:12]}  Bd4 {[%clk 0:00:01]} 49. Qe2 {[%clk 0:00:10]}  e5 {[%clk 0:00:02]} 50. Qf3 {[%clk 0:00:10]}  Qb6 {[%clk 0:00:02]} 51. b4 {[%clk 0:00:10]}  Qa7 {[%clk 0:00:02]} 52. Bc4 {[%clk 0:00:10]}  e4 {[%clk 0:00:02]} 53. Qxe4 {[%clk 0:00:09]}  Bxf2+ {[%clk 0:00:02]} 54. Kf1 {[%clk 0:00:09]}  Be3 {[%clk 0:00:02]} 55. Qe5+ {[%clk 0:00:09]}  Kh7 {[%clk 0:00:01]} 56. Qe6 {[%clk 0:00:08]} 1-0


[Site "https://www.chess.com"]

[Event "Titled Tuesday Blitz February 15 Early 2022"]
[White "Tregubov, Pavel V."]
[Black "Dreev, Aleksey"]
[WhiteFideId "4115341"]
[BlackFideId "4100107"]
[WhiteElo "2341"]
[BlackElo "2636"]
[Result "0-1"]
[Round "06"]
[TimeControl "180+1"]
[Date "2022.02.15"]
[WhiteClock "0:00:09"]
[BlackClock "0:02:01"]

1. e4 {[%clk 0:03:00]}  c6 {[%clk 0:02:51]} 2. Nf3 {[%clk 0:03:00]}  d5 {[%clk 0:02:51]} 3. Nc3 {[%clk 0:03:00]}  Bg4 {[%clk 0:02:49]} 4. h3 {[%clk 0:03:00]}  Bxf3 {[%clk 0:02:49]} 5. Qxf3 {[%clk 0:03:00]}  e6 {[%clk 0:02:50]} 6. g3 {[%clk 0:02:59]}  Nf6 {[%clk 0:02:48]} 7. Bg2 {[%clk 0:02:59]}  Bb4 {[%clk 0:02:48]} 8. e5 {[%clk 0:02:55]}  Nfd7 {[%clk 0:02:48]} 9. d4 {[%clk 0:02:38]}  c5 {[%clk 0:02:44]} 10. a3 {[%clk 0:02:33]}  Ba5 {[%clk 0:02:43]} 11. b4 {[%clk 0:02:26]}  cxd4 {[%clk 0:02:35]} 12. Nb5 {[%clk 0:02:24]}  Bc7 {[%clk 0:02:34]} 13. Bf4 {[%clk 0:02:02]}  Bxe5 {[%clk 0:02:26]} 14. O-O {[%clk 0:01:43]}  O-O {[%clk 0:02:21]} 15. Rfe1 {[%clk 0:01:43]}  Nc6 {[%clk 0:02:18]} 16. Bxe5 {[%clk 0:01:36]}  Ndxe5 {[%clk 0:02:16]} 17. Qf4 {[%clk 0:01:35]}  Ng6 {[%clk 0:02:16]} 18. Qd2 {[%clk 0:01:02]}  Qb6 {[%clk 0:02:15]} 19. a4 {[%clk 0:00:22]}  a6 {[%clk 0:02:15]} 20. Na3 {[%clk 0:00:23]}  Qxb4 {[%clk 0:02:15]} 21. Qd3 {[%clk 0:00:15]}  Qc3 {[%clk 0:02:14]} 22. Rab1 {[%clk 0:00:14]}  Qxd3 {[%clk 0:02:12]} 23. cxd3 {[%clk 0:00:14]}  Rab8 {[%clk 0:02:12]} 24. Rb6 {[%clk 0:00:13]}  Nge5 {[%clk 0:02:11]} 25. Reb1 {[%clk 0:00:11]}  Na5 {[%clk 0:02:08]} 26. Bf1 {[%clk 0:00:09]}  Nd7 {[%clk 0:02:06]} 27. R6b4 {[%clk 0:00:09]}  Rfc8 {[%clk 0:02:01]} 28. Rxd4 {[%clk 0:00:09]}  Rc3 {[%clk 0:02:01]} 0-1


[Site "https://www.chess.com"]

[Event "Titled Tuesday Blitz February 15 Early 2022"]
[White "Vargas Pereda, Jesus Manue"]
[Black "Viskelis, Darius"]
[WhiteFideId "5115710"]
[BlackFideId "12800830"]
[WhiteElo "1767"]
[BlackElo "1999"]
[Result "0-1"]
[Round "06"]
[TimeControl "180+1"]
[Date "2022.02.15"]
[WhiteClock "0:01:23"]
[BlackClock "0:01:31"]

1. d4 {[%clk 0:03:00]}  d5 {[%clk 0:02:59]} 2. Bf4 {[%clk 0:02:59]}  Nf6 {[%clk 0:02:58]} 3. Nf3 {[%clk 0:02:59]}  e6 {[%clk 0:02:59]} 4. e3 {[%clk 0:02:59]}  Bd6 {[%clk 0:02:59]} 5. Bxd6 {[%clk 0:02:56]}  Qxd6 {[%clk 0:02:58]} 6. Ne5 {[%clk 0:02:52]}  Qb4+ {[%clk 0:02:56]} 7. Nd2 {[%clk 0:02:46]}  Qxb2 {[%clk 0:02:56]} 8. Bd3 {[%clk 0:02:45]}  O-O {[%clk 0:02:49]} 9. O-O {[%clk 0:02:44]}  Nbd7 {[%clk 0:02:43]} 10. f4 {[%clk 0:02:32]}  Qc3 {[%clk 0:02:41]} 11. Rb1 {[%clk 0:02:29]}  Qa3 {[%clk 0:02:30]} 12. Qf3 {[%clk 0:02:11]}  g6 {[%clk 0:02:19]} 13. Qh3 {[%clk 0:02:04]}  b6 {[%clk 0:02:16]} 14. Ndf3 {[%clk 0:02:04]}  Ba6 {[%clk 0:02:10]} 15. Ng5 {[%clk 0:02:01]}  h5 {[%clk 0:01:53]} 16. Nxe6 {[%clk 0:01:53]}  Bxd3 {[%clk 0:01:50]} 17. cxd3 {[%clk 0:01:47]}  fxe6 {[%clk 0:01:39]} 18. Qxe6+ {[%clk 0:01:47]}  Kg7 {[%clk 0:01:32]} 19. Qe7+ {[%clk 0:01:23]}  Qxe7 {[%clk 0:01:31]} 0-1


[Site "https://www.chess.com"]